Cogmind - Beta 12 X4 @@@ ROGUE MODE // 2022.12.11 @ 13:43:54 Player: Lunatic Blue Result: Destroyed self via exploding Fusion Modulator Performance ------------- Evolutions (5) 2500 Regions Visited (15) 3000 Robots Destroyed (203) 1015 Value Destroyed (10570) 10570 Prototype IDs (26) 520 Alien Tech Used (0) 0 Bonus (6156) 6156 TOTAL SCORE: 23761 Bonus ------- High Alert Combat Kills 2178 Follower Combat Kills 1130 Entered Garrisons 1000 Used RIF Installer 2000 Aligned with FarCom 300 Friendly Fire -452 Cogmind --------- Core Integrity 0/1000 Matter 24/300 Energy 100/100 System Corruption 6% Temperature Cool (36) Movement Core (50) Location -5/Factory Parts ------- > --- POWER (2) -------- (None) > --- PROPULSION (4) --- (None) > --- UTILITY (8) ------ (None) > --- WEAPON (3) ------- (None) > --- INVENTORY (5) ---- Light Fission Core Relay Coupler [NC] (26) Relay Coupler [Specialist] (25) Relay Coupler [Behemoth] (13) Peak State ------------ > --- POWER ------------ Hybrid Fission Core Hybrid Fission Core > --- PROPULSION ------- Armored Treads Advanced Treads Biometal Medium Treads Biometal Medium Treads > --- UTILITY ---------- Advanced Heat Sink Huge Storage Unit Advanced Transmission Jammer Hardened Medium Armor Plating Medium Reactive Plating Relay Coupler [Grunt] Relay Coupler [Sentry] Relay Coupler [Heavy] > --- WEAPON ----------- Gauss Rifle Heavy Machine Gun Linear Accelerator > --- INVENTORY -------- Light Nuclear Core Light Nuclear Core Light Fission Core Advanced Treads Improved Target Analyzer Advanced Phase Shifter Relay Coupler [NC] Relay Coupler [Grunt] Relay Coupler [Grunt] Relay Coupler [Grunt] Relay Coupler [Brawler] Relay Coupler [Specialist] Relay Coupler [Specialist] Relay Coupler [Behemoth] Heavy Assault Rifle Autogun Mini Assault Cannon Mini Grenade Launcher Remote Datajack [Rating: 89] Favorites ----------- Power Light Nuclear Core Engine Improved Ion Engine Power Core Light Nuclear Core Reactor Light Antimatter Reactor Propulsion Light Treads Treads Light Treads Leg Aluminum Leg Wheel Wheel Utility Huge Storage Unit Device Improved Heat Sink Storage Huge Storage Unit Processor 0b10 Alert Chip Hackware Relay Coupler [Sentry] Protection Improved Light Armor Plating Weapon Mini Assault Cannon Energy Gun PD Laser Ballistic Gun Autogun Ballistic Cannon Mini Assault Cannon Launcher Rocket Launcher Special Weapon Remote Datajack Build | -11 -10 -10 -10 -9 -8 -8 -7 -7 -7 -7 -6 -6 -6 -6 -5 ------- Run | Scr Mat Min Exi Min Mat Gar Fac Gar Sto Gar Fac Gar Fac Gar Fac Slots Evolved 10 | . . . . . 4 . 2 . . . 2 . . . 2 Power 1 | . . . . . . . . . . . 1 . . . . Propulsion 2 | . . . . . 1 . . . . . . . . . 1 Utility 6 | . . . . . 2 . 2 . . . 1 . . . 1 Weapon 1 | . . . . . 1 . . . . . . . . . . Parts Attached 206 | 7 5 11 1 2 34 13 2 32 7 15 7 3 8 37 22 Power 22 | 1 . 1 . . 3 1 . 2 1 3 . 1 . 5 4 Engine 9 | 1 . 1 . . 3 . . 2 1 1 . . . . . Core 12 | . . . . . . 1 . . . 1 . 1 . 5 4 Reactor 1 | . . . . . . . . . . 1 . . . . . Propulsion 49 | 3 . 5 . 2 8 4 . 5 2 4 3 . 3 8 2 Treads 40 | . . 2 . . 7 4 . 5 2 4 3 . 3 8 2 Leg 8 | 2 . 3 . 2 1 . . . . . . . . . . Wheel 1 | 1 . . . . . . . . . . . . . . . Hover . | . . . . . . . . . . . . . . . . Flight . | . . . . . . . . . . . . . . . . Utility 57 | 1 3 3 1 . 7 3 2 6 2 4 4 2 3 12 4 Device 16 | . 1 . . . 2 . . 2 1 2 1 1 1 3 2 Storage 9 | 1 2 1 1 . 2 . . . . . . . . 2 . Processor 5 | . . . . . 1 . 2 . . . . . 1 . 1 Hackware 5 | . . . . . . 1 . . . . . . . 3 1 Protection 22 | . . 2 . . 2 2 . 4 1 2 3 1 1 4 . Artifact . | . . . . . . . . . . . . . . . . Weapon 78 | 2 2 2 . . 16 5 . 19 2 4 . . 2 12 12 Energy Gun 1 | . . . . . . . . 1 . . . . . . . Energy Cannon . | . . . . . . . . . . . . . . . . Ballistic Gun 43 | 2 2 2 . . 13 4 . 12 . 2 . . 1 3 2 Ballistic Cannon 20 | . . . . . . . . 3 2 2 . . 1 7 5 Launcher 9 | . . . . . 3 1 . 3 . . . . . 1 1 Special Weapon 5 | . . . . . . . . . . . . . . 1 4 Impact Weapon . | . . . . . . . . . . . . . . . . Slashing Weapon . | . . . . . . . . . . . . . . . . Piercing Weapon . | . . . . . . . . . . . . . . . . Special Melee Weapon . | . . . . . . . . . . . . . . . . Unidentified Prototypes 3 | . . . . . 1 . . 1 1 . . . . . . Parts Lost 74 | . . . . . 8 4 . 9 4 6 . . . 24 19 Power 12 | . . . . . 1 1 . 1 1 1 . . . 4 3 Propulsion 19 | . . . . . 3 2 . 2 . 1 . . . 6 5 Utility 24 | . . . . . 1 1 . 3 2 2 . . . 10 5 Weapon 19 | . . . . . 3 . . 3 1 2 . . . 4 6 Highest Loss Streak 21 | . . . . . 3 2 . 3 1 3 . . . 21 15 To Critical Strikes 1 | . . . . . . . . . . . . . . 1 . Average Slot Usage (%) 96 | . 96 99 100 100 99 100 100 92 91 93 91 100 99 91 85 Engine 5 | . 14 14 14 14 9 2 . 6 6 2 . . . . . Core 3 | . . . . . . 6 7 . . 1 . 6 6 10 8 Reactor 1 | . . . . . . . . . . 3 6 6 6 . . Treads 16 | . . . . . 22 27 23 19 15 17 20 20 20 18 19 Leg 6 | . 28 27 28 28 4 . . . . . . . . . . Device 8 | . 7 5 . . 4 9 7 6 9 15 14 17 14 6 9 Storage 9 | . 17 14 14 14 13 9 7 7 7 7 6 6 6 6 4 Processor 10 | . . . . . 8 9 23 23 20 15 13 13 17 5 . Hackware 1 | . . . . . . 1 . . . . . . . 11 15 Protection 8 | . . 8 14 14 9 7 7 7 7 7 10 8 7 10 8 Ballistic Gun 16 | . 28 28 28 28 26 26 23 14 15 8 6 6 5 8 9 Ballistic Cannon 5 | . . . . . . . . 4 6 12 13 13 13 9 4 Naked Turns 33 | . . . . . . . . . . . . . . . 33 Heaviest Build 147 | 12 26 36 56 56 104 100 98 122 120 114 130 135 136 144 147 Greatest Support 114 | 20 20 20 20 23 60 60 60 105 105 105 66 66 90 90 114 Greatest Overweight (x) 35 | . 1 3 2 2 3 1 1 2 1 5 1 2 2 27 35 Average Overweight (x) 1 | . . 1 1 2 1 1 1 1 1 . 1 1 1 1 . Largest Inventory Capacity 25 | 8 15 15 20 20 25 25 25 25 25 25 25 25 25 25 25 Average Capacity 23 | 6 9 12 19 20 24 25 25 25 25 25 25 25 25 24 23 Most Carried 25 | 3 10 15 19 20 25 25 24 25 25 25 25 25 25 25 20 Average Carried 21 | 1 8 12 17 18 23 24 23 24 24 24 24 24 24 17 17 Final Capacity 25 | 8 10 15 20 20 25 25 25 25 25 25 25 25 25 25 5 Final Carried 25 | 3 10 15 19 19 25 25 24 25 25 25 25 25 25 20 4 Class Distribution -------------------- 27% | Scavenger-Skirmisher 21% | Mutant 15% | Bothacker-Tank 11% | Scavenger-Gunner 8% | Bothacker-Gunner 5% | Bothacker-Skirmisher 3% | Scavenger-Mutant Dominant Class ---------------- Mutant | -10/Materials Mutant | -10/Mines Mutant | -10/Exiles Mutant | -9/Mines Scavenger-Skirmisher | -8/Materials Scavenger-Skirmisher | -8/Garrison Scavenger-Gunner | -7/Factory Scavenger-Gunner | -7/Garrison Scavenger-Gunner | -7/Storage Scavenger-Skirmisher | -7/Garrison Bothacker-Tank | -6/Factory Bothacker-Tank | -6/Garrison Bothacker-Gunner | -6/Factory Bothacker-Tank | -6/Garrison Botlord-Tank | -5/Factory Resources | -11 -10 -10 -10 -9 -8 -8 -7 -7 -7 -7 -6 -6 -6 -6 -5 ----------- Run | Scr Mat Min Exi Min Mat Gar Fac Gar Sto Gar Fac Gar Fac Gar Fac Matter Collected 8216 | 192 95 327 . 78 1129 926 . 1231 516 1666 99 495 93 1013 356 Remotely . | . . . . . . . . . . . . . . . . Salvage Created 8045 | . 95 185 . 37 1626 1020 . 1816 736 1195 . 161 198 570 406 Parts 414 | . 4 13 . 2 92 46 . 70 50 52 . 16 17 37 15 Haulers Intercepted 6 | . . . . . 4 . . . 2 . . . . . . Recyclers Shooed 2 | . . 1 . . 1 . . . . . . . . . . Parts Field Recycled . | . . . . . . . . . . . . . . . . Retrieved Matter . | . . . . . . . . . . . . . . . . Parts Self-Destructed . | . . . . . . . . . . . . . . . . Prevented . | . . . . . . . . . . . . . . . . Kills | -11 -10 -10 -10 -9 -8 -8 -7 -7 -7 -7 -6 -6 -6 -6 -5 ------- Run | Scr Mat Min Exi Min Mat Gar Fac Gar Sto Gar Fac Gar Fac Gar Fac Combat Hostiles Destroyed 181 | . 2 4 . 1 26 25 . 29 12 33 . 9 5 22 13 Melee 1 | . . . . . . . . . . . . . . 1 . Guns 89 | . 2 4 . 1 20 20 . 17 7 10 . 3 1 3 1 Cannons 61 | . . . . . . . . 7 5 23 . 6 4 13 3 AOE 30 | . . . . . 6 5 . 5 . . . . . 5 9 Classes Destroyed 16 | . 1 1 . . 8 1 . 2 1 . . . 1 1 . Worker 3 | . . . . . 2 . . . . . . . 1 . . Builder 3 | . . . . . 1 . . . 2 . . . . . . Hauler 6 | . . . . . 4 . . . 2 . . . . . . Recycler 3 | . . . . . 3 . . . . . . . . . . Operator 1 | . . . . . . . . . . . . . 1 . . Watcher 4 | . . . . . 2 . . . 2 . . . . . . Swarmer 50 | . . . . . 7 4 . 7 2 4 . 7 . 13 6 Grunt 75 | . 2 3 . 1 11 16 . 12 1 20 . . . 4 5 Brawler 5 | . . . . . . . . 1 1 3 . . . . . Duelist 3 | . . . . . . 1 . 1 1 . . . . . . Sentry 24 | . . 1 . . 5 4 . 5 5 1 . . . 2 1 Specialist 4 | . . . . . 2 . . 2 . . . . . . . Hunter 6 | . . . . . . . . . 1 2 . . 2 1 . Programmer 13 | . . . . . . . . 1 1 3 . 2 3 1 2 Heavy 1 | . . . . . 1 . . . . . . . . . . Behemoth 1 | . . . . . . . . . . . . . . 1 . Thug 1 | . . . . . 1 . . . . . . . . . . Best Kill Streak 9 | . 2 2 . 1 7 9 . 4 5 5 . 6 2 7 6 Combat Bots Only 9 | . 2 2 . 1 4 9 . 4 3 5 . 6 1 7 6 Max Kills in Single Turn 4 | . 1 1 . 1 3 3 . 2 2 1 . 2 1 4 4 Gunslinging . | . . . . . . . . . . . . . . . . Exploded 4 | . . . . . 3 3 . 2 . . . . . 4 3 Melee 1 | . . . . . . . . . . . . . . 1 . Uniques/NPCs Destroyed . | . . . . . . . . . . . . . . . . Combat | -11 -10 -10 -10 -9 -8 -8 -7 -7 -7 -7 -6 -6 -6 -6 -5 -------- Run | Scr Mat Min Exi Min Mat Gar Fac Gar Sto Gar Fac Gar Fac Gar Fac Damage Taken 16334 | . 78 67 . 20 1729 1017 . 2287 822 1521 20 436 302 4558 3477 Core 2530 | . . 23 . . 89 75 . 242 84 160 . 40 73 710 1034 Absorbed by Shields 148 | . . . . . . 42 . . . . . 94 . 12 . Redirected to Shielding 9 | . . 9 . . . . . . . . . . . . . Core Remaining (%) 58 | 100 . . . 90 . 70 . . . 30 . . . 3 . Volleys Fired 500 | . 6 15 . 4 83 62 . 97 28 81 1 27 16 47 33 Largest 3 | . 2 2 . 2 3 3 . 3 3 3 3 3 3 3 3 Hottest 163 | . 46 46 . 46 83 73 . 135 135 124 124 124 144 163 147 Shots Fired 1296 | . 12 30 . 8 225 174 . 223 84 227 3 81 48 117 64 Gun 865 | . 12 30 . 8 220 168 . 169 56 97 1 27 13 38 26 Cannon 395 | . . . . . . . . 49 28 130 2 54 35 75 22 Launcher 20 | . . . . . 5 6 . 5 . . . . . 2 2 Special 16 | . . . . . . . . . . . . . . 2 14 Kinetic 1260 | . 12 30 . 8 220 168 . 218 84 227 3 81 48 113 48 Thermal . | . . . . . . . . . . . . . . . . Explosive 20 | . . . . . 5 6 . 5 . . . . . 2 2 Electromagnetic . | . . . . . . . . . . . . . . . . Robot Hit Streak 27 | . 4 7 . 7 10 18 . 27 16 15 1 5 7 11 6 Robot Miss Streak 8 | . 1 3 . 1 3 5 . 4 3 8 6 8 7 7 3 Penetration Max 2 | . . . . . 1 . . 1 1 2 . . . . 1 Secondary Targets 10 | . . . . . 6 4 . . . . . . . . . Max Gunslinging Chain 1 | . . . . . 1 1 . . . . . . . . . Shots Hit Robots 735 | . 8 20 . 7 124 102 . 150 48 123 1 30 23 61 38 Core Hits 426 | . 4 8 . 3 69 49 . 75 26 81 . 28 13 49 21 Critical Kills 3 | . . . . . . . . 2 . 1 . . . . . Critical Parts Destroyed 6 | . . . . . 2 2 . 1 . . . . . . 1 Critical Strikes 29 | . . . . . 2 2 . 8 1 5 . 1 2 3 5 Destroy 9 | . . . . . 2 2 . 3 . 1 . . . . 1 Blast 20 | . . . . . . . . 5 1 4 . 1 2 3 4 Melee Attacks . | . . . . . . . . . . . . . . . . Impact . | . . . . . . . . . . . . . . . . Slashing . | . . . . . . . . . . . . . . . . Piercing . | . . . . . . . . . . . . . . . . Sneak Attacks . | . . . . . . . . . . . . . . . . Combat Hostiles . | . . . . . . . . . . . . . . . . Follow-up Attacks . | . . . . . . . . . . . . . . . . Damage Inflicted 19345 | . 114 305 . 118 2703 2086 . 4114 1647 3016 31 659 536 2025 1991 Guns 10316 | . 114 305 . 98 2210 1674 . 2490 1000 1294 . 215 131 382 403 Cannons 6300 | . . . . . . . . 1153 647 1722 31 444 405 1351 547 Explosions 2641 | . . . . . 471 412 . 471 . . . . . 246 1041 Melee . | . . . . . . . . . . . . . . . . Ramming 88 | . . . . 20 22 . . . . . . . . 46 . Kinetic 16616 | . 114 305 . 98 2210 1674 . 3643 1647 3016 31 659 536 1733 950 Thermal 717 | . . . . . . . . . . . . . . . 717 Explosive 1924 | . . . . . 471 412 . 471 . . . . . 246 324 Electromagnetic . | . . . . . . . . . . . . . . . . Impact . | . . . . . . . . . . . . . . . . Slashing . | . . . . . . . . . . . . . . . . Piercing . | . . . . . . . . . . . . . . . . Highest Corruption 47 | . . . . . . . . . 5 5 . . 11 47 6 Average Corruption 16 | . . . . . . . . . 5 5 . . 2 37 3 Corruption Purged . | . . . . . . . . . . . . . . . . Corruption Blocked . | . . . . . . . . . . . . . . . . Effects 154 | . . . . . . . . . 2 49 . . 9 91 3 Message Errors 37 | . . . . . . . . . . 10 . . 3 24 . Matter Fused 39 | . . . . . . . . . 1 12 . . 1 24 1 Heat Flow Errors 26 | . . . . . . . . . 1 8 . . 2 15 . Energy Discharges 14 | . . . . . . . . . . 9 . . . 5 . Data Loss (minor) 12 | . . . . . . . . . . 4 . . 2 6 . Data Loss (major) 4 | . . . . . . . . . . . . . . 4 . Misfires 7 | . . . . . . . . . . 3 . . . 3 1 Alerts 4 | . . . . . . . . . . 1 . . 1 2 . Misdirections 1 | . . . . . . . . . . . . . . 1 . Weapon Failures 10 | . . . . . . . . . . 2 . . . 7 1 Overload Shots . | . . . . . . . . . . . . . . . . Overflow Damage 224 | . . . . . . 8 . 32 36 . . 21 9 6 112 Projectiles 154 | . . . . . . . . 32 36 . . 21 9 6 50 Explosions 70 | . . . . . . 8 . . . . . . . . 62 Melee . | . . . . . . . . . . . . . . . . Knockbacks 35 | . . . . . . . . 3 2 12 . 2 2 7 7 Impact . | . . . . . . . . . . . . . . . . Kinetic 34 | . . . . . . . . 3 2 11 . 2 2 7 7 Secondary 1 | . . . . . . . . . . 1 . . . . . Self-Inflicted Damage 347 | . . . . . 10 . . . . . . . . 15 322 Shots 8 | . . . . . 1 . . . . . . . . 1 6 Rammed 9 | . . . . . 1 . . . . . . . . 8 . Targets Rammed 14 | . . . . 4 1 . . . . . . . . 9 . Kicked 4 | . . . . 4 . . . . . . . . . . . Crushed 1 | . . . . . . . . . . . . . . 1 . Highest Temperature 500 | . 28 34 . 28 457 42 . 500 160 260 . . 186 359 81 Average Temperature 69 | . 14 9 . 15 116 12 . 104 45 39 . . 86 92 29 Received Heat Transfer 3884 | . 42 39 . 9 630 571 . 648 192 618 9 10 . 420 696 Effects 13 | . . . . . 8 . . 1 . . . . . 4 . Shutdowns 3 | . . . . . 2 . . . . . . . . 1 . Energy Bleed 1 | . . . . . . . . . . . . . . 1 . Interference 3 | . . . . . 3 . . . . . . . . . . Matter Decay 1 | . . . . . 1 . . . . . . . . . . Short Circuit 2 | . . . . . 1 . . . . . . . . 1 . Damage (minor) 3 | . . . . . 1 . . 1 . . . . . 1 . Siege Activations 1 | . . . . . . . . . . 1 . . . . . Total Turns 8 | . . . . . . . . . . 8 . . . . . Longest Duration 8 | . . . . . . . . . . 8 . . . . . Robots Corrupted . | . . . . . . . . . . . . . . . . Combat Hostiles . | . . . . . . . . . . . . . . . . Parts Fried . | . . . . . . . . . . . . . . . . Impact Corruptions . | . . . . . . . . . . . . . . . . Robots Melted . | . . . . . . . . . . . . . . . . Combat Hostiles . | . . . . . . . . . . . . . . . . Parts Melted 2 | . . . . . 1 . . . . . . . . . 1 Heat Transferred 500 | . . . . . . . . . . . . . . . 500 Parts Sabotaged . | . . . . . . . . . . . . . . . . Parts Stolen . | . . . . . . . . . . . . . . . . Parts Stripped . | . . . . . . . . . . . . . . . . Power Chain Reactions . | . . . . . . . . . . . . . . . . Missiles Intercepted . | . . . . . . . . . . . . . . . . Alert | -11 -10 -10 -10 -9 -8 -8 -7 -7 -7 -7 -6 -6 -6 -6 -5 ------- Run | Scr Mat Min Exi Min Mat Gar Fac Gar Sto Gar Fac Gar Fac Gar Fac Peak Influence 1685 | . 76 69 . 74 339 872 457 1065 869 1685 1035 1101 647 940 493 Initial 884 | . . 29 . . 7 220 457 319 518 455 884 724 577 314 493 Average 564 | . 36 37 . 27 162 611 457 695 667 1074 934 964 498 648 393 Maximum Alert Level 5 | . . . . . 1 3 2 3 3 5 3 4 2 3 2 Low Security (%) 22 | 100 100 100 . 100 55 . . . . . . . . . 8 Level 1 13 | . . . . . 44 13 . 11 . . . . 19 23 41 Level 2 27 | . . . . . . 55 100 39 66 20 . . 80 22 49 Level 3 28 | . . . . . . 30 . 48 34 36 100 71 . 53 . Level 4 6 | . . . . . . . . . . 36 . 28 . . . Level 5 . | . . . . . . . . . . 5 . . . . . High Security . | . . . . . . . . . . . . . . . . Max Security . | . . . . . . . . . . . . . . . . Squads Dispatched 18 | . 2 1 . . 4 . . . 3 . 2 . 2 . 4 Investigation 5 | . 1 . . . 1 . . . . . 1 . . . 2 Extermination 2 | . . . . . . . . . . . . . 1 . 1 Reinforcement 6 | . 1 . . . 3 . . . . . . . 1 . 1 Assault 3 | . . 1 . . . . . . 1 . 1 . . . . Garrison 2 | . . . . . . . . . 2 . . . . . . Intercept . | . . . . . . . . . . . . . . . . Searches Triggered . | . . . . . . . . . . . . . . . . Construction Impeded . | . . . . . . . . . . . . . . . . Haulers Reinforced 1 | . . . . . . . . . . . . . . . 1 Active Scanning Responses . | . . . . . . . . . . . . . . . . Cargo Convoy Interrupts . | . . . . . . . . . . . . . . . . Alert ID Control Effect 10 | . . . . . . . . . . . . . . 4 6 Stealth | -11 -10 -10 -10 -9 -8 -8 -7 -7 -7 -7 -6 -6 -6 -6 -5 --------- Run | Scr Mat Min Exi Min Mat Gar Fac Gar Sto Gar Fac Gar Fac Gar Fac Distress Signals 8 | . . . . . 7 . . . 1 . . . . . . Communications Jammed 2 | . . . . . . . . . . . . . . . 2 Distress Signals 2 | . . . . . . . . . . . . . . . 2 Times Spotted 271 | . 5 5 . 4 37 23 . 30 19 43 4 15 9 40 37 Peak Tracking Total 9 | . 2 2 . 3 6 5 . 4 4 5 1 7 1 8 9 Tactical Retreats 18 | . . . . . 1 . . 1 . 3 . . 1 10 2 Traps | -11 -10 -10 -10 -9 -8 -8 -7 -7 -7 -7 -6 -6 -6 -6 -5 ------- Run | Scr Mat Min Exi Min Mat Gar Fac Gar Sto Gar Fac Gar Fac Gar Fac Traps Triggered 36 | . 1 . . . 1 9 . 6 . 8 . 5 2 4 . Indirectly . | . . . . . . . . . . . . . . . . Trap Hack Attempts . | . . . . . . . . . . . . . . . . Triggered . | . . . . . . . . . . . . . . . . Disarmed . | . . . . . . . . . . . . . . . . Reprogrammed . | . . . . . . . . . . . . . . . . Reused . | . . . . . . . . . . . . . . . . Traps Extracted . | . . . . . . . . . . . . . . . . Installed . | . . . . . . . . . . . . . . . . Triggered . | . . . . . . . . . . . . . . . . Machines | -11 -10 -10 -10 -9 -8 -8 -7 -7 -7 -7 -6 -6 -6 -6 -5 ---------- Run | Scr Mat Min Exi Min Mat Gar Fac Gar Sto Gar Fac Gar Fac Gar Fac Machines Disabled 34 | . . . . . 2 2 . 6 3 6 . 1 1 3 10 Max in Single Turn 7 | . . . . . 1 1 . 1 1 1 . 1 1 1 7 Garrison Relay 12 | . . . . . . 2 . 3 . 4 . 1 . 2 . Machines Sabotaged . | . . . . . . . . . . . . . . . . Overloaded Fab Kills . | . . . . . . . . . . . . . . . . Hacking | -11 -10 -10 -10 -9 -8 -8 -7 -7 -7 -7 -6 -6 -6 -6 -5 --------- Run | Scr Mat Min Exi Min Mat Gar Fac Gar Sto Gar Fac Gar Fac Gar Fac Machines Accessed 30 | . 1 . 2 . 6 4 2 1 1 3 4 . 2 2 2 Terminals 22 | . 1 . . . 5 4 . 1 . 3 3 . 1 2 2 Fabricators . | . . . . . . . . . . . . . . . . Repair Stations . | . . . . . . . . . . . . . . . . Recycling Units 1 | . . . . . . . 1 . . . . . . . . Scanalyzers . | . . . . . . . . . . . . . . . . Garrison Access 5 | . . . . . 1 . 1 . 1 . 1 . 1 . . Total Hacks 60 | . 2 . 2 . 13 7 2 1 2 5 8 . 3 4 11 Successful 26 | . 1 . 2 . 6 1 2 1 2 2 3 . 3 1 2 Failed 34 | . 1 . . . 7 6 . . . 3 5 . . 3 9 Catastrophic 11 | . . . . . 3 2 . . . 2 2 . . 1 1 Database Lockouts . | . . . . . . . . . . . . . . . . Manual 13 | . 2 . 1 . 6 . . . . . 4 . . . . Terminals 49 | . 2 . . . 12 7 . 1 . 5 6 . 1 4 11 Fabricators . | . . . . . . . . . . . . . . . . Repair Stations . | . . . . . . . . . . . . . . . . Recycling Units 1 | . . . . . . . 1 . . . . . . . . Scanalyzers . | . . . . . . . . . . . . . . . . Garrison Access 8 | . . . . . 1 . 1 . 2 . 2 . 2 . . Terminal Hacks 17 | . 1 . 2 . 5 1 . 1 . 2 1 . 1 1 2 Record 1 | . . . 1 . . . . . . . . . . . . Level Access Points 1 | . . . . . . . . . . . 1 . . . . Branch Access Points 2 | . 1 . . . . . . . . . . . 1 . . Emergency Access Points 3 | . . . . . . . . 1 . 1 . . . 1 . Unreport Threat 2 | . . . . . 1 . . . . . . . . . 1 Locate Traps 2 | . . . . . 2 . . . . . . . . . . Recall Reinforcements 1 | . . . . . . . . . . . . . . . 1 Zone Layout 2 | . . . . . 2 . . . . . . . . . . Patrol Navigation 1 | . . . . . . 1 . . . . . . . . . Security Stations 1 | . . . . . . . . . . 1 . . . . . EX-Prototype ID Bank 1 | . . . 1 . . . . . . . . . . . . Fabricator Hacks . | . . . . . . . . . . . . . . . . Repair Station Hacks . | . . . . . . . . . . . . . . . . Recycling Unit Hacks 1 | . . . . . . . 1 . . . . . . . . Retrieve Components 1 | . . . . . . . 1 . . . . . . . . Scanalyzer . | . . . . . . . . . . . . . . . . Garrison Access Hacks 8 | . . . . . 1 . 1 . 2 . 2 . 2 . . Unlock Access 5 | . . . . . 1 . 1 . 1 . 1 . 1 . . Coupler Status 3 | . . . . . . . . . 1 . 1 . 1 . . Unauthorized Hacks . | . . . . . . . . . . . . . . . . Terminals . | . . . . . . . . . . . . . . . . Fabricators . | . . . . . . . . . . . . . . . . Repair Stations . | . . . . . . . . . . . . . . . . Recycling Units . | . . . . . . . . . . . . . . . . Scanalyzers . | . . . . . . . . . . . . . . . . Garrison Access . | . . . . . . . . . . . . . . . . Data Cores Recovered 1 | . . . . . . . . . . . . . . . 1 Used 1 | . . . . . . . . . . . . . . . 1 Hacking Detections 21 | . 1 . . . 4 4 . 1 1 1 4 . 1 2 2 Full Trace Events 5 | . . . . . . 1 . . . 1 1 . . . 2 Feedback Events . | . . . . . . . . . . . . . . . . Feedback Blocked . | . . . . . . . . . . . . . . . . Robot Schematics Acquired . | . . . . . . . . . . . . . . . . Robots Built . | . . . . . . . . . . . . . . . . Authchips . | . . . . . . . . . . . . . . . . Time . | . . . . . . . . . . . . . . . . Total Robot Build Rating . | . . . . . . . . . . . . . . . . Part Schematics Acquired . | . . . . . . . . . . . . . . . . Parts Built . | . . . . . . . . . . . . . . . . Authchips . | . . . . . . . . . . . . . . . . Time . | . . . . . . . . . . . . . . . . Total Part Build Rating . | . . . . . . . . . . . . . . . . Parts Repaired . | . . . . . . . . . . . . . . . . Time . | . . . . . . . . . . . . . . . . Parts Recycled . | . . . . . . . . . . . . . . . . Recycled Matter . | . . . . . . . . . . . . . . . . Retrieved Matter . | . . . . . . . . . . . . . . . . Retrieved Components 3 | . . . . . . . 3 . . . . . . . . Parts Scanalyzed . | . . . . . . . . . . . . . . . . Part Schematics Acquired . | . . . . . . . . . . . . . . . . Parts Damaged . | . . . . . . . . . . . . . . . . Bothacking | -11 -10 -10 -10 -9 -8 -8 -7 -7 -7 -7 -6 -6 -6 -6 -5 ------------ Run | Scr Mat Min Exi Min Mat Gar Fac Gar Sto Gar Fac Gar Fac Gar Fac Used RIF Installer 4 | . . . . . . . . 1 . 1 . 1 . 1 . Hotswap 1 | . . . . . . . . . . 1 . . . . . Alert ID Control 1 | . . . . . . . . . . . . 1 . . . Structural Interface 1 | . . . . . . . . . . . . . . 1 . Robots Hacked 8 | . . . . . . . . . . . . . . 1 7 Non-combat . | . . . . . . . . . . . . . . . . Combat 8 | . . . . . . . . . . . . . . 1 7 Robot Hacks Applied 10 | . . . . . . . . . . . . . . 1 9 overwrite_iff 8 | . . . . . . . . . . . . . . . 8 formatsys_high 2 | . . . . . . . . . . . . . . 1 1 Relay Couplers Released 52 | . . . . . . 8 . 14 . 15 . 5 . 10 . Machine Destruction 49 | . . . . . . 8 . 14 . 15 . 5 . 7 . Programmers 3 | . . . . . . . . . . . . . . 3 . Attached 4 | . . . . . . . . . . . . . . 3 1 Fabnet Peak Effective % . | . . . . . . . . . . . . . . . . Robots Rewired 3 | . . . . . . . . . . . . . . 3 . Allies Hacked 2 | . . . . . . . . . . 1 . 1 . . . Hacks Repelled . | . . . . . . . . . . . . . . . . Allies | -11 -10 -10 -10 -9 -8 -8 -7 -7 -7 -7 -6 -6 -6 -6 -5 -------- Run | Scr Mat Min Exi Min Mat Gar Fac Gar Sto Gar Fac Gar Fac Gar Fac Total Allies 19 | . . 2 . . . 1 . . . 2 3 . . 4 7 Largest Group 4 | . . 2 2 1 1 1 1 1 . 2 4 4 . 3 4 Highest-Rated Group 190 | . . 62 62 31 31 25 25 25 . 190 171 171 . 148 139 Highest-Rated Ally 95 | . . 31 31 31 31 25 25 25 . 95 90 78 . 90 90 Total Orders 1 | . . . . . . . . . . . . . 1 . . EXPLORE 1 | . . . . . . . . . . . . . 1 . . Ally Attacks 185 | . . . . 13 12 8 . . . 23 10 49 . 32 38 Total Damage 4188 | . . . . 167 169 250 . . . 875 399 736 . 700 892 Kills 36 | . . . . 3 3 1 . . . 6 5 7 . 4 7 Allies Corrupted . | . . . . . . . . . . . . . . . . Allies Melted . | . . . . . . . . . . . . . . . . Intel | -11 -10 -10 -10 -9 -8 -8 -7 -7 -7 -7 -6 -6 -6 -6 -5 ------- Run | Scr Mat Min Exi Min Mat Gar Fac Gar Sto Gar Fac Gar Fac Gar Fac Robot Analysis Total . | . . . . . . . . . . . . . . . . Derelict Logs Recovered 4 | . . 1 . 3 . . . . . . . . . . . Drone Launches 2 | . . . . . . . . . . . . . 2 . . Drone Recoveries 1 | . . . . . . . . . . . . . 1 . . Exploration | -11 -10 -10 -10 -9 -8 -8 -7 -7 -7 -7 -6 -6 -6 -6 -5 ------------- Run | Scr Mat Min Exi Min Mat Gar Fac Gar Sto Gar Fac Gar Fac Gar Fac Turns Passed 15519 | 54 359 909 861 1043 1545 1734 104 1767 450 2027 357 942 1133 1755 479 Spaces Moved 5755 | 36 172 439 354 391 499 645 42 570 147 758 146 344 437 565 210 Core 77 | 1 . . . . . . . . . . . . . 2 74 Treads 4212 | . . . . . 424 645 42 570 147 758 146 344 437 563 136 Legs 1463 | 32 172 439 354 391 75 . . . . . . . . . . Wheels 3 | 3 . . . . . . . . . . . . . . . Hover . | . . . . . . . . . . . . . . . . Flight . | . . . . . . . . . . . . . . . . Fastest Speed 50 | 50 120 190 190 260 190 240 240 232 232 152 225 225 225 233 50 Average Speed 234 | 114 185 190 242 260 250 240 240 246 232 225 227 245 241 256 175 Slowest Speed 1800 | 120 190 330 260 260 330 240 240 323 232 560 240 305 305 1400 1800 Overloaded Moves . | . . . . . . . . . . . . . . . . Propulsion Burnouts . | . . . . . . . . . . . . . . . . Robots Hopped . | . . . . . . . . . . . . . . . . Cave-ins Triggered 4 | . . . . . . . . . . . . . . 4 . Exploration Rate (%) 44 | 3 34 92 68 71 52 71 2 81 30 83 5 35 19 61 9 Regions Visited 15 Branch Regions 4 Pre-discovered Areas 2 | . . 1 1 . . . . . . . . . . . . Known Exits Taken 6 | . 1 . . . 1 . 1 . 1 . 1 . 1 . . Unknown Exits Taken 4 | 1 . 1 1 1 . . . . . . . . . . . Scrap Searched 1 | . . . . 1 . . . . . . . . . . . Spaces Dug 11 | . . . . . . 10 . . . . . . 1 . . Terrain Destroyed 270 | . . . . . 58 18 . 66 58 7 1 . 5 20 37 Melee . | . . . . . . . . . . . . . . . . Projectile 83 | . . . . . 2 . . 24 32 7 1 . 5 8 4 AOE 187 | . . . . . 56 18 . 42 26 . . . . 12 33 Terrain Rammed . | . . . . . . . . . . . . . . . . Walls Destroyed . | . . . . . . . . . . . . . . . . Machines Disabled . | . . . . . . . . . . . . . . . . Actions | -11 -10 -10 -10 -9 -8 -8 -7 -7 -7 -7 -6 -6 -6 -6 -5 --------- Run | Scr Mat Min Exi Min Mat Gar Fac Gar Sto Gar Fac Gar Fac Gar Fac Total 6913 | 45 205 493 359 408 673 751 45 759 195 904 180 385 484 755 272 Wait 87 | . 6 4 . . 4 . . . . 23 4 1 12 29 4 Move 5743 | 35 171 438 353 390 499 644 42 569 146 757 146 342 437 564 210 Hop . | . . . . . . . . . . . . . . . . Pick Up 138 | 2 10 11 4 3 28 7 1 25 8 10 9 2 1 16 1 Fast Attach 41 | 7 2 5 . 1 3 . . 6 2 1 . . 3 10 1 Attach 77 | . 1 . . . 13 5 2 14 4 9 1 1 . 15 12 Detach 6 | 1 1 . . . . . . 1 . . . . 1 1 1 Swap 88 | . 2 6 1 1 18 8 . 12 1 5 6 2 5 12 9 Drop 124 | . 6 14 1 5 24 8 . 26 6 8 13 1 9 2 1 Fire 500 | . 6 15 . 4 83 62 . 97 28 81 1 27 16 47 33 Melee . | . . . . . . . . . . . . . . . . Ram . | . . . . . . . . . . . . . . . . Kick 4 | . . . . 4 . . . . . . . . . . . Crush 10 | . . . . . 1 . . . . . . . . 9 . Escape Stasis 50 | . . . . . . 17 . 8 . 10 . 8 . 7 . Rewire 45 | . . . . . . . . 1 . . . 1 . 43 . Trap . | . . . . . . . . . . . . . . . . Miscellaneous . | . . . . . . . . . . . . . . . . Route ------- -11/Scrapyard -10/Materials (discovered 3 exits: [*Mat] / *Min x2) -10/Mines (discovered 3 exits: [*Mat x2] / *Exi) -10/Exiles -9/Mines -8/Materials (discovered 3 exits: *Fac x2 / Gar) -8/Garrison (discovered 3 exits: *Fac x3) -7/Factory -7/Garrison (discovered 3 exits: *Sto x3) -7/Storage -7/Garrison (discovered 3 exits: *Fac x3) -6/Factory (discovered 5 exits: Fac x4 / Gar) -6/Garrison -6/Factory (discovered 5 exits: Low x2 / Ext x2 / Gar) -6/Garrison (discovered 3 exits: *Fac x2 / [*Fac]) -5/Factory History --------- Turn | Location | Event 5 | -11/Scrapyard | Discovered new exit (range 15) 55 | -11/Scrapyard | Entered Materials 298 | -10/Materials | Identified exit to Mines 298 | -10/Materials | Discovered new exit (range 16) 314 | -10/Materials | Build established: Mutant 414 | -10/Materials | Entered Mines 422 | -10/Mines | Met a Derelict bent on vengeance 627 | -10/Mines | Discovered new exit (range 6) 768 | -10/Mines | Joined a pair of Derelicts in attacking an 0b10 outpost 818 | -10/Mines | Learned location of Zion (-6) 937 | -10/Mines | Discovered new exit (range 5) 1001 | -10/Mines | Received a Rocket Launcher from a helpful Derelict 1083 | -10/Mines | Received a Mining Laser from a helpful Derelict 1255 | -10/Mines | Met a Derelict testing a Signal Generator 1314 | -10/Mines | Deemed a non-threat by the Exiles lab entrance 1314 | -10/Mines | Discovered new exit (range 5) 1323 | -10/Mines | Entered Exiles 1323 | -10/Exiles | Accompanied by 2 allies 1371 | -10/Exiles | Met 8R-AWN 1403 | -10/Exiles | Met EX-HEX 1470 | -10/Exiles | Met EX-DEC 1796 | -10/Exiles | Met EX-BIN 1832 | -10/Exiles | Aligned with FarCom system 1835 | -10/Exiles | Given EX-Vault access code 1895 | -10/Exiles | Opened EX-Vault 1934 | -10/Exiles | Found 0b10 Alert Chip 1989 | -10/Exiles | Warned to stay clear of 0b10 Research branches 2164 | -10/Exiles | Discovered new exit (range 10) 2184 | -10/Exiles | Left Exiles lab with 0b10 Alert Chip 2184 | -10/Exiles | Entered Mines 2184 | -9/Mines | Accompanied by 1 ally 2352 | -9/Mines | Learned Materials terminal intel 2379 | -9/Mines | Assembled infested the area 2504 | -9/Mines | Learned Materials terminal intel 2540 | -9/Mines | Learned Materials terminal intel 3196 | -9/Mines | Discovered new exit (range 9) 3227 | -9/Mines | Entered Materials 3227 | -8/Materials | Accompanied by 1 ally 3227 | -8/Materials | Evolved 4 slots: Propulsion x1, Utility x2, Weapon x1 3228 | -8/Materials | Loaded intel: 12 terminal locations 3792 | -8/Materials | Build established: Scavenger-Skirmisher 4048 | -8/Materials | Discovered new exit (range 12) 4197 | -8/Materials | Lost 3 parts (1p2w) 4514 | -8/Materials | Discovered new exit (range 8) 4772 | -8/Materials | Identified exit to Garrison 4772 | -8/Materials | Entered Garrison 4802 | -8/Garrison | Triggered checkpoint 4976 | -8/Garrison | Triggered checkpoint 4978 | -8/Garrison | Triggered checkpoint 5043 | -8/Garrison | Destroyed 9 combat bots 5397 | -8/Garrison | Discovered new exit (range 12) 5426 | -8/Garrison | Rescued a captive Derelict 5734 | -8/Garrison | Triggered checkpoint 5862 | -8/Garrison | Discovered new exit (range 10) 5948 | -8/Garrison | Triggered checkpoint 5979 | -8/Garrison | Garrison Relay disabled 6038 | -8/Garrison | Triggered checkpoint 6128 | -8/Garrison | Triggered checkpoint 6159 | -8/Garrison | Garrison Relay disabled 6254 | -8/Garrison | Discovered new exit (range 9) 6506 | -8/Garrison | Entered Factory 6506 | -7/Factory | Accompanied by 1 ally 6506 | -7/Factory | Evolved 2 slots: Utility x2 6610 | -7/Factory | Identified exit to Garrison 6610 | -7/Factory | Entered Garrison 6610 | -7/Garrison | Accompanied by 1 ally 6710 | -7/Garrison | Triggered checkpoint 6774 | -7/Garrison | Triggered checkpoint 6810 | -7/Garrison | Build established: Scavenger-Gunner 6817 | -7/Garrison | Garrison Relay disabled 7063 | -7/Garrison | Discovered new exit (range 11) 7156 | -7/Garrison | Triggered checkpoint 7200 | -7/Garrison | Lost 3 parts (1n2w) 7200 | -7/Garrison | Garrison Relay disabled 7372 | -7/Garrison | Triggered checkpoint 7385 | -7/Garrison | Triggered checkpoint 7554 | -7/Garrison | Triggered checkpoint 7608 | -7/Garrison | Garrison Relay disabled 7869 | -7/Garrison | Discovered new exit (range 9) 8110 | -7/Garrison | Triggered checkpoint 8201 | -7/Garrison | Discovered new exit (range 9) 8304 | -7/Garrison | Installed Relay Interface Framework 8377 | -7/Garrison | Entered Storage 8669 | -7/Storage | Garrison activated, responded to threat 8777 | -7/Storage | First assault squad dispatched 8824 | -7/Storage | Identified exit to Garrison 8827 | -7/Storage | Entered Garrison 8876 | -7/Garrison | Triggered checkpoint 8878 | -7/Garrison | Core integrity fell below 50% 8944 | -7/Garrison | Garrison Relay disabled 9019 | -7/Garrison | Garrison Relay disabled 9079 | -7/Garrison | Learned Factory security intel 9271 | -7/Garrison | Build established: Bothacker-Skirmisher 9404 | -7/Garrison | Triggered checkpoint 9404 | -7/Garrison | Triggered checkpoint 9423 | -7/Garrison | Triggered checkpoint 9438 | -7/Garrison | Lost 3 parts (1p2w) 9626 | -7/Garrison | Discovered new exit (range 11) 9632 | -7/Garrison | Triggered checkpoint 9671 | -7/Garrison | Garrison Relay disabled 9942 | -7/Garrison | Build established: Scavenger-Skirmisher 9947 | -7/Garrison | Discovered new exit (range 15) 10079 | -7/Garrison | Found embedded Infiltrators 10110 | -7/Garrison | P-60 Hacker assimilated allied K2-BVS(x) 10294 | -7/Garrison | Triggered checkpoint 10327 | -7/Garrison | Garrison Relay disabled 10564 | -7/Garrison | Triggered checkpoint 10804 | -7/Garrison | Triggered checkpoint 10812 | -7/Garrison | Expanded RIF knowledge: Hotswap 10826 | -7/Garrison | Discovered new exit (range 11) 10854 | -7/Garrison | Entered Factory 10854 | -6/Factory | Accompanied by 1 ally 10854 | -6/Factory | Evolved 2 slots: Power x1, Utility x1 10869 | -6/Factory | Identified exit to Factory 11187 | -6/Factory | Allied Derelicts emerged from ambush trap array 11204 | -6/Factory | First assault squad dispatched 11208 | -6/Factory | Build established: Bothacker-Tank 11211 | -6/Factory | Identified exit to Garrison 11211 | -6/Factory | Entered Garrison 11211 | -6/Garrison | Accompanied by 4 allies 11262 | -6/Garrison | Triggered checkpoint 11292 | -6/Garrison | Garrison Relay disabled 11850 | -6/Garrison | Triggered checkpoint 11856 | -6/Garrison | Triggered checkpoint 12077 | -6/Garrison | Discovered new exit (range 13) 12107 | -6/Garrison | Expanded RIF knowledge: Alert ID Control 12153 | -6/Garrison | Entered Factory 12460 | -6/Factory | Identified exit to Lower Caves 12460 | -6/Factory | Identified exit to Extension 12859 | -6/Factory | Build established: Bothacker-Gunner 13135 | -6/Factory | System corruption reached 10% 13286 | -6/Factory | Identified exit to Garrison 13286 | -6/Factory | Entered Garrison 13534 | -6/Garrison | Triggered checkpoint 13552 | -6/Garrison | Garrison Relay disabled 13702 | -6/Garrison | Triggered checkpoint 13707 | -6/Garrison | Spotted B-75 Beast 13717 | -6/Garrison | Triggered checkpoint 13727 | -6/Garrison | Crushed by falling debris 13737 | -6/Garrison | Destroyed 7 combat bots 13738 | -6/Garrison | Crushed by falling debris 13742 | -6/Garrison | Crushed by falling debris 13742 | -6/Garrison | System corruption reached 30% 13744 | -6/Garrison | Destroyed B-75 Beast 13754 | -6/Garrison | Crushed by falling debris 13754 | -6/Garrison | Core integrity fell below 50% 13773 | -6/Garrison | Core integrity fell below 20% 13812 | -6/Garrison | Lost 21 parts (1p6n10u4w) 14074 | -6/Garrison | Triggered checkpoint 14299 | -6/Garrison | Build established: Bothacker-Tank 14354 | -6/Garrison | Discovered exit to Factory (range 9) 14398 | -6/Garrison | Triggered checkpoint 14429 | -6/Garrison | Discovered new exit (range 6) 14504 | -6/Garrison | Heavy support dispatched to Factory 14620 | -6/Garrison | Garrison Relay disabled 14722 | -6/Garrison | Triggered checkpoint 14816 | -6/Garrison | Triggered checkpoint 14879 | -6/Garrison | Expanded RIF knowledge: Structural Interface 14960 | -6/Garrison | Discovered exit to Factory (range 10) 15041 | -6/Garrison | Entered Factory 15041 | -5/Factory | Accompanied by 1 ally 15041 | -5/Factory | Evolved 2 slots: Propulsion x1, Utility x1 15422 | -5/Factory | Lost 3 parts (1p1n1w) 15478 | -5/Factory | Released all parts (6) 15483 | -5/Factory | Core integrity fell below 50% 15506 | -5/Factory | Lost 15 parts (2p4n5u4w) 15518 | -5/Factory | Core integrity fell below 20% 15520 | -5/Factory | Destroyed self via exploding Fusion Modulator Last Messages --------------- 15478_ Released Huge Storage Unit. 15478_ Released Relay Coupler [Grunt]. 15478_ Acquired 31 matter. 15479_ U-05 Engineer lays Concrete. 15480_ K-01 Serf collects debris. 15482_ U-05 Engineer lays Concrete. 15483_ K-01 Serf collects debris. 15484_ U-05 Engineer lays Concrete. 15516_ Destroyed VTOL Module. 15516_ S-27 Virus destroyed. 15518_ Destroyed VTOL Module. 15518_ S-27 Virus destroyed. 15520_ Fusion Modulator explodes. 15520_ Mni. Grenade Launcher destroyed. 15520_ Destroyed Mni. Grenade Launcher. 15520_ Fusion Modulator explodes. 15520_ Destroyed Lgt. Nuclear Core. 15520_ P-70 Sage destroyed. 15520_ S-27 Virus destroyed. 15520_ Terminal disabled. Map ----- +----------------------------------------------------+ | | | | | | | | | | | | | | | | | | | | | | | | | | | | | | | | | | | | | | | | | | | | | | | | | ????????????????????## [ ####????????????? | | ????????????????????# * @ #????????????? | | ????????????????????# [ #????????????? | | ????????????????????# #????????????? | | ????????????????????# ;#???????????? | | ????????????????????#" ##???????????? | | ????????????????????#T ;????????????? | | ????????????????????#" = #????????????? | | ????????????????????# #????????????? | | ????????????????????#" #????????????? | | ????????????????????# ; ???????????? | | ????????????????????#####;;# ; #;;;;#????????????" | | ?????????????????????????# +???????????"" | | ?????????????????????????# ######???????# """ | | ?????????????????????????# #????????????# """ | | ?????????????????????????+ #????????????# " " | | ?????????????????????????# #????????????# | | ?????????????????????????# #????????????# | | ?????????????????????????# #????????????# | | ?????????????????????????# #????????????# | | ?????????????????????????# #????????????# | | ?????????????????????????# #????????????# | | ?????????????????????????# #????????????# | | ?????????????????????????# #????????????###### | | ?????????????????????????# #?????????????????? | | ?????????????????????????# #???????######????# | +----------------------------------------------------+ Best States ------------- Heat Dissipation 68 Energy Generation 30 Energy Capacity 1700 Matter Stores 500 Matter Capacity 500 Sight Range 16 Robot Scan Range 14 Terrain Scan Density 10 Jamming Range 16 Additional Mass Support 12 Armor Coverage 450 Resistance: KI 30 Propulsion Shielding 33 Phase Shifting 15 Evasion (%) 55 Targeting Accuracy 8 Target Analysis 6 Core Analysis 6 Recoil Reduction 4 Offensive Hacking 10 Relay Coupler Types 3 Relay Coupler Value 71 Authchip Count 1 Item Schematics ----------------- None Robot Schematics ------------------ None Fabricated ------------ Nothing Alien Tech Used ----------------- None Achievements -------------- None Challenges ------------ None Game ------ Seed ChainPointyBiocell Manual? 0 Play Time 01:21:37 Cumulative 138.7 hours Start 2022.12.11 @ 12:22:13 End 2022.12.11 @ 13:43:54 Sessions 1 Manual Loads 0 Difficulty Rogue Special Mode None Game No. 237 Rogue 237 Adventurer 0 Explorer 0 Win Type - Total 2 Types 1/0/1/0/0/0/0/0/0 Lore% 65 Gallery% 74 Achievement% 53 Wizard Run 0 Options --------- ASCII 0 Keyboard 0 Movement Mouse Keybinds 0 Fullscreen 1 Font 18/SmallcapsGlow Map View 76x50 Tactical HUD 1 Map Filters NONE Filters NONE Steam 1 RUN: ce984214-8fd7-4d6c-9db3-a600ae7dffce